[Event "Early-Titled-Tuesday-Blitz-March-19-2024"]
[Site "Chess.com"]
[Date "2024.03.19"]
[Round "3"]
[White "RamonManon0g"]
[Black "esteban062000"]
[Result "0-1"]
[WhiteElo "2382"]
[BlackElo "2172"]
[TimeControl "180+1"]
[EndTime "8:29:53 PDT"]
[Termination "esteban062000 won on time"]

1. e4 {[%clk 0:03:00.9]} 1... c5 {[%clk 0:02:58.6]} 2. Nf3 {[%clk 0:03:00.7]}
2... Nc6 {[%clk 0:02:57.3]} 3. Bb5 {[%clk 0:03:00.5]} 3... g6 {[%clk 0:02:55.4]}
4. c3 {[%clk 0:02:59.7]} 4... Bg7 {[%clk 0:02:55.6]} 5. O-O {[%clk 0:02:59.8]}
5... a6 {[%clk 0:02:55.2]} 6. Bxc6 {[%clk 0:02:58.5]} 6... bxc6 {[%clk
0:02:55.6]} 7. Qe2 {[%clk 0:02:58.8]} 7... Nf6 {[%clk 0:02:55.2]} 8. d4 {[%clk
0:02:56.6]} 8... cxd4 {[%clk 0:02:54.8]} 9. cxd4 {[%clk 0:02:57.5]} 9... O-O
{[%clk 0:02:54.9]} 10. Nc3 {[%clk 0:02:52.1]} 10... a5 {[%clk 0:02:49.5]} 11.
Rd1 {[%clk 0:02:50.6]} 11... Ba6 {[%clk 0:02:49.4]} 12. Qc2 {[%clk 0:02:49.2]}
12... Qc7 {[%clk 0:02:42]} 13. Bg5 {[%clk 0:02:45.7]} 13... Rfc8 {[%clk
0:02:39.7]} 14. Rac1 {[%clk 0:02:44.5]} 14... Rab8 {[%clk 0:02:39.9]} 15. Bxf6
{[%clk 0:02:34.3]} 15... Bxf6 {[%clk 0:02:39]} 16. Nd5 {[%clk 0:02:34.4]} 16...
Qb7 {[%clk 0:02:30.7]} 17. Nxf6+ {[%clk 0:02:33.3]} 17... exf6 {[%clk
0:02:31.6]} 18. b3 {[%clk 0:02:32.6]} 18... d5 {[%clk 0:02:30.4]} 19. e5 {[%clk
0:02:28.6]} 19... f5 {[%clk 0:02:20.7]} 20. Qd2 {[%clk 0:02:25.5]} 20... Qb4
{[%clk 0:02:15.8]} 21. Qh6 {[%clk 0:02:24.2]} 21... Qf8 {[%clk 0:02:14.9]} 22.
Qd2 {[%clk 0:02:20.1]} 22... Qb4 {[%clk 0:02:14]} 23. Qg5 {[%clk 0:02:17.3]}
23... Be2 {[%clk 0:02:01.6]} 24. Re1 {[%clk 0:01:48.5]} 24... Bxf3 {[%clk
0:02:01.2]} 25. gxf3 {[%clk 0:01:49.4]} 25... Qxd4 {[%clk 0:01:45.1]} 26. e6
{[%clk 0:01:48.8]} 26... f6 {[%clk 0:01:03.2]} 27. Qh6 {[%clk 0:01:40]} 27...
Rc7 {[%clk 0:00:56.1]} 28. Rcd1 {[%clk 0:01:26.3]} 28... Qb2 {[%clk 0:00:53.1]}
29. Rd2 {[%clk 0:01:25.2]} 29... Qc3 {[%clk 0:00:49.4]} 30. e7 {[%clk
0:01:19.2]} 30... Re8 {[%clk 0:00:47.2]} 31. Rde2 {[%clk 0:01:18]} 31... Qb4
{[%clk 0:00:39.5]} 32. Re6 {[%clk 0:00:52.9]} 32... Rcxe7 {[%clk 0:00:35.4]} 33.
Rxe7 {[%clk 0:00:38.6]} 33... Rxe7 {[%clk 0:00:36.3]} 34. Rc1 {[%clk 0:00:36.4]}
34... Re1+ {[%clk 0:00:21]} 35. Kg2 {[%clk 0:00:36]} 35... Rxc1 {[%clk
0:00:19.4]} 36. Qxc1 {[%clk 0:00:36.9]} 36... c5 {[%clk 0:00:15.5]} 37. Qe3
{[%clk 0:00:33.3]} 37... Qd4 {[%clk 0:00:08.1]} 38. Qe8+ {[%clk 0:00:31.5]}
38... Kg7 {[%clk 0:00:08.6]} 39. Qe7+ {[%clk 0:00:29.6]} 39... Kg8 {[%clk
0:00:08.9]} 40. Qe8+ {[%clk 0:00:28.5]} 40... Kg7 {[%clk 0:00:08.9]} 41. Qe7+
{[%clk 0:00:28.3]} 41... Kh6 {[%clk 0:00:05.7]} 42. Qf8+ {[%clk 0:00:28]} 42...
Kg5 {[%clk 0:00:06.1]} 43. Qd6 {[%clk 0:00:21.6]} 43... Qe5 {[%clk 0:00:02.6]}
44. Qxc5 {[%clk 0:00:18.4]} 44... d4 {[%clk 0:00:03.2]} 45. Qc1+ {[%clk
0:00:15.1]} 45... f4 {[%clk 0:00:03.7]} 46. Kh3 {[%clk 0:00:12.6]} 46... h5
{[%clk 0:00:04.3]} 47. Qg1+ {[%clk 0:00:10.8]} 47... Kh6 {[%clk 0:00:04.3]} 48.
Qc1 {[%clk 0:00:09.9]} 48... Qf5+ {[%clk 0:00:04.9]} 49. Kg2 {[%clk 0:00:09.5]}
49... Qg5+ {[%clk 0:00:05.6]} 50. Kh1 {[%clk 0:00:09.2]} 50... Qe5 {[%clk
0:00:06.2]} 51. Kg2 {[%clk 0:00:09.1]} 51... d3 {[%clk 0:00:06.6]} 52. Qd2
{[%clk 0:00:08.6]} 52... Qg5+ {[%clk 0:00:07.3]} 53. Kf1 {[%clk 0:00:07.8]}
53... Qf5 {[%clk 0:00:08.2]} 54. Kg2 {[%clk 0:00:06.2]} 54... Qg5+ {[%clk
0:00:08.4]} 55. Kf1 {[%clk 0:00:06.5]} 55... Qf5 {[%clk 0:00:08]} 56. Kg2 {[%clk
0:00:06.5]} 56... g5 {[%clk 0:00:08.6]} 57. h3 {[%clk 0:00:06.6]} 57... h4
{[%clk 0:00:09.2]} 58. Kh2 {[%clk 0:00:06.2]} 58... Qe5 {[%clk 0:00:09.4]} 59.
Qxd3 {[%clk 0:00:06]} 59... Qb2 {[%clk 0:00:08.5]} 60. Kg2 {[%clk 0:00:05.1]}
60... Qxa2 {[%clk 0:00:08.4]} 61. Qf5 {[%clk 0:00:03.7]} 61... Qa1 {[%clk
0:00:08.5]} 62. Qb5 {[%clk 0:00:01.7]} 62... Qe5 {[%clk 0:00:08.7]} 0-1

[Event "Early-Titled-Tuesday-Blitz-March-19-2024"]
[Site "Chess.com"]
[Date "2024.03.19"]
[Round "3"]
[White "Szparu"]
[Black "GM_dmitrij"]
[Result "0-1"]
[WhiteElo "2804"]
[BlackElo "3078"]
[TimeControl "180+1"]
[EndTime "8:29:55 PDT"]
[Termination "GM_dmitrij won on time"]

1. e4 {[%clk 0:03:00.9]} 1... c6 {[%clk 0:02:59]} 2. d4 {[%clk 0:03:01]} 2... d5
{[%clk 0:02:59.9]} 3. exd5 {[%clk 0:03:01.3]} 3... cxd5 {[%clk 0:03:00.8]} 4. c4
{[%clk 0:03:01.7]} 4... Nf6 {[%clk 0:03:00.7]} 5. Nc3 {[%clk 0:03:02]} 5... Nc6
{[%clk 0:03:00.7]} 6. Bg5 {[%clk 0:03:02.3]} 6... e6 {[%clk 0:02:56.8]} 7. Nf3
{[%clk 0:02:58.6]} 7... Be7 {[%clk 0:02:56.1]} 8. Bd3 {[%clk 0:02:56.2]} 8...
dxc4 {[%clk 0:02:55.6]} 9. Bxc4 {[%clk 0:02:57.1]} 9... O-O {[%clk 0:02:55.3]}
10. O-O {[%clk 0:02:56.8]} 10... b6 {[%clk 0:02:54.7]} 11. a3 {[%clk 0:02:45.4]}
11... Bb7 {[%clk 0:02:54.4]} 12. Qd3 {[%clk 0:02:43.5]} 12... h6 {[%clk
0:02:47.9]} 13. Be3 {[%clk 0:02:33.8]} 13... Rc8 {[%clk 0:02:24.9]} 14. Rad1
{[%clk 0:02:32.9]} 14... Qc7 {[%clk 0:02:08.1]} 15. Ba2 {[%clk 0:02:32.2]} 15...
Rfd8 {[%clk 0:02:07.2]} 16. Rfe1 {[%clk 0:02:14.8]} 16... Bf8 {[%clk 0:02:07]}
17. h3 {[%clk 0:02:08]} 17... Ne7 {[%clk 0:02:04.8]} 18. Ne5 {[%clk 0:02:05.4]}
18... Ned5 {[%clk 0:02:04.6]} 19. Bd2 {[%clk 0:01:59.2]} 19... Nxc3 {[%clk
0:01:50]} 20. bxc3 {[%clk 0:01:51.2]} 20... Bd5 {[%clk 0:01:50.1]} 21. Bb1
{[%clk 0:01:50.4]} 21... Qb7 {[%clk 0:01:49.2]} 22. Ng4 {[%clk 0:01:21.4]} 22...
Be7 {[%clk 0:00:58.2]} 23. Qg3 {[%clk 0:01:00.5]} 23... Nxg4 {[%clk 0:00:45.5]}
24. hxg4 {[%clk 0:00:55.9]} 24... Bg5 {[%clk 0:00:22.2]} 25. f4 {[%clk
0:00:52.3]} 25... Be7 {[%clk 0:00:22.1]} 26. g5 {[%clk 0:00:46.5]} 26... hxg5
{[%clk 0:00:20]} 27. fxg5 {[%clk 0:00:31.2]} 27... g6 {[%clk 0:00:20.6]} 28. Rf1
{[%clk 0:00:31.6]} 28... Bf8 {[%clk 0:00:21]} 29. Bf4 {[%clk 0:00:25.9]} 29...
Bg7 {[%clk 0:00:17.9]} 30. Be5 {[%clk 0:00:25.9]} 30... Bxe5 {[%clk 0:00:14.4]}
31. Qxe5 {[%clk 0:00:20.4]} 31... Qe7 {[%clk 0:00:09.5]} 32. Rf6 {[%clk
0:00:17.9]} 32... Qd6 {[%clk 0:00:08.4]} 33. Bxg6 {[%clk 0:00:11.4]} 33... Qxe5
{[%clk 0:00:05.5]} 34. Bxf7+ {[%clk 0:00:11.8]} 34... Kg7 {[%clk 0:00:06]} 35.
dxe5 {[%clk 0:00:12.3]} 35... Rxc3 {[%clk 0:00:04.9]} 36. Rdf1 {[%clk
0:00:12.7]} 36... Rg3 {[%clk 0:00:02]} 37. Rg6+ {[%clk 0:00:10.6]} 37... Kh7
{[%clk 0:00:02.7]} 38. Rh6+ {[%clk 0:00:10.1]} 38... Kg7 {[%clk 0:00:03.6]} 39.
Rh2 {[%clk 0:00:07]} 39... Rxg5 {[%clk 0:00:02.6]} 40. Bh5 {[%clk 0:00:02.8]}
40... Rf8 {[%clk 0:00:02.9]} 41. Rxf8 {[%clk 0:00:01.8]} 41... Kxf8 {[%clk
0:00:03.8]} 42. Be2 {[%clk 0:00:01.9]} 42... Rxe5 {[%clk 0:00:03.8]} 43. Kf2
{[%clk 0:00:02.7]} 43... Rf5+ {[%clk 0:00:03.8]} 44. Ke3 {[%clk 0:00:03.3]}
44... Re5+ {[%clk 0:00:04.4]} 45. Kd2 {[%clk 0:00:03.7]} 45... a5 {[%clk
0:00:03.1]} 46. g3 {[%clk 0:00:03.8]} 46... Rg5 {[%clk 0:00:03]} 47. Rf2+ {[%clk
0:00:04.1]} 47... Ke7 {[%clk 0:00:03.2]} 48. g4 {[%clk 0:00:04.7]} 48... Kd6
{[%clk 0:00:03.3]} 49. Rf8 {[%clk 0:00:04.5]} 49... Rg7 {[%clk 0:00:02.8]} 50.
Rb8 {[%clk 0:00:04.1]} 50... Kc5 {[%clk 0:00:03.3]} 51. Kc3 {[%clk 0:00:03.6]}
51... Rc7 {[%clk 0:00:03]} 52. g5 {[%clk 0:00:03]} 52... Rg7 {[%clk 0:00:03]}
53. Rc8+ {[%clk 0:00:02.3]} 53... Kd6 {[%clk 0:00:03.5]} 54. Rb8 {[%clk
0:00:01.7]} 54... Kc7 {[%clk 0:00:03.9]} 55. Ra8 {[%clk 0:00:02.1]} 55... Rxg5
{[%clk 0:00:04.4]} 56. Ra7+ {[%clk 0:00:02.6]} 56... Kd6 {[%clk 0:00:04.8]} 57.
Ra6 {[%clk 0:00:02.6]} 57... Rg3+ {[%clk 0:00:04.8]} 58. Kd4 {[%clk 0:00:02.7]}
58... Kc6 {[%clk 0:00:04.1]} 59. Ke5 {[%clk 0:00:02.7]} 59... Re3+ {[%clk
0:00:03.8]} 60. Kf6 {[%clk 0:00:03.2]} 60... Rxe2 {[%clk 0:00:04.7]} 0-1

[Event "Early-Titled-Tuesday-Blitz-March-19-2024"]
[Site "Chess.com"]
[Date "2024.03.19"]
[Round "3"]
[White "IMRosen"]
[Black "Tol_Tol"]
[Result "1-0"]
[WhiteElo "2662"]
[BlackElo "2442"]
[TimeControl "180+1"]
[EndTime "8:29:56 PDT"]
[Termination "IMRosen won on time"]

1. d4 {[%clk 0:03:00.9]} 1... Nf6 {[%clk 0:02:58.6]} 2. Bf4 {[%clk 0:03:00.8]}
2... g6 {[%clk 0:02:53.6]} 3. Nc3 {[%clk 0:03:00.7]} 3... Bg7 {[%clk 0:02:54.1]}
4. e4 {[%clk 0:03:01.3]} 4... d6 {[%clk 0:02:54.5]} 5. Qd2 {[%clk 0:03:01.4]}
5... h6 {[%clk 0:02:53]} 6. h3 {[%clk 0:02:57.6]} 6... g5 {[%clk 0:02:53.3]} 7.
Bh2 {[%clk 0:02:54.5]} 7... Nbd7 {[%clk 0:02:53.5]} 8. e5 {[%clk 0:02:49.5]}
8... Nh7 {[%clk 0:02:42.8]} 9. O-O-O {[%clk 0:02:46.5]} 9... O-O {[%clk
0:02:41.3]} 10. f4 {[%clk 0:02:40.7]} 10... c5 {[%clk 0:02:37.7]} 11. Nf3 {[%clk
0:02:30.3]} 11... cxd4 {[%clk 0:02:37.3]} 12. Qxd4 {[%clk 0:02:30.7]} 12... dxe5
{[%clk 0:02:20.5]} 13. fxe5 {[%clk 0:02:27.5]} 13... Qa5 {[%clk 0:02:17.3]} 14.
Bd3 {[%clk 0:02:04.7]} 14... Nc5 {[%clk 0:02:16.6]} 15. Bc4 {[%clk 0:01:39.6]}
15... Be6 {[%clk 0:02:13.2]} 16. Bxe6 {[%clk 0:01:19.4]} 16... Nxe6 {[%clk
0:02:13]} 17. Qd5 {[%clk 0:01:19.3]} 17... Qb6 {[%clk 0:02:05.4]} 18. Qb3 {[%clk
0:01:13.9]} 18... Rfc8 {[%clk 0:01:55.2]} 19. Nd5 {[%clk 0:01:02.4]} 19... Qxb3
{[%clk 0:01:50.6]} 20. axb3 {[%clk 0:01:02.7]} 20... Kf8 {[%clk 0:01:42.6]} 21.
Rhf1 {[%clk 0:01:02.9]} 21... Ke8 {[%clk 0:01:40.5]} 22. Nd2 {[%clk 0:01:00.4]}
22... Nc5 {[%clk 0:01:28.5]} 23. Kb1 {[%clk 0:00:52]} 23... e6 {[%clk
0:01:28.6]} 24. Nc3 {[%clk 0:00:47.9]} 24... Rc6 {[%clk 0:00:51.8]} 25. Nc4
{[%clk 0:00:48.2]} 25... Bf8 {[%clk 0:00:51.4]} 26. Nb5 {[%clk 0:00:45.7]} 26...
a6 {[%clk 0:00:42.1]} 27. Nbd6+ {[%clk 0:00:45.6]} 27... Bxd6 {[%clk 0:00:42.3]}
28. Nxd6+ {[%clk 0:00:46.5]} 28... Rxd6 {[%clk 0:00:39.2]} 29. Rxd6 {[%clk
0:00:42.7]} 29... Nf8 {[%clk 0:00:31.7]} 30. Rfd1 {[%clk 0:00:37.7]} 30... Ne4
{[%clk 0:00:29.6]} 31. R6d4 {[%clk 0:00:36.9]} 31... Nc5 {[%clk 0:00:27.2]} 32.
b4 {[%clk 0:00:36.9]} 32... Ncd7 {[%clk 0:00:27.1]} 33. b3 {[%clk 0:00:32.8]}
33... Rc8 {[%clk 0:00:26.8]} 34. Kb2 {[%clk 0:00:33]} 34... b5 {[%clk
0:00:26.3]} 35. c4 {[%clk 0:00:32.8]} 35... Nb8 {[%clk 0:00:20.7]} 36. Kc3
{[%clk 0:00:12.9]} 36... Nc6 {[%clk 0:00:19.6]} 37. Re4 {[%clk 0:00:13.5]} 37...
Nd7 {[%clk 0:00:19.8]} 38. Rd6 {[%clk 0:00:12.1]} 38... Ke7 {[%clk 0:00:18.9]}
39. c5 {[%clk 0:00:10.2]} 39... a5 {[%clk 0:00:15.7]} 40. h4 {[%clk 0:00:03.3]}
40... axb4+ {[%clk 0:00:15.1]} 41. Kb2 {[%clk 0:00:03.2]} 41... gxh4 {[%clk
0:00:14.4]} 42. Rxh4 {[%clk 0:00:03.4]} 42... Ncxe5 {[%clk 0:00:14.4]} 43. Bxe5
{[%clk 0:00:02.9]} 43... Nxe5 {[%clk 0:00:14.3]} 44. Rxb4 {[%clk 0:00:01.7]}
44... Rxc5 {[%clk 0:00:14]} 45. Rd2 {[%clk 0:00:02.4]} 45... h5 {[%clk
0:00:12.2]} 46. Rh4 {[%clk 0:00:02.8]} 46... b4 {[%clk 0:00:10.4]} 47. Rxb4
{[%clk 0:00:02.7]} 47... Ng4 {[%clk 0:00:10.3]} 48. Rb7+ {[%clk 0:00:03.3]}
48... Kf6 {[%clk 0:00:10.4]} 49. Rb6 {[%clk 0:00:03.9]} 49... Kg6 {[%clk
0:00:09.4]} 50. Re2 {[%clk 0:00:03.5]} 50... Rf5 {[%clk 0:00:07.9]} 51. b4
{[%clk 0:00:04]} 51... Ne5 {[%clk 0:00:07.7]} 52. Rb8 {[%clk 0:00:03.7]} 52...
Nd3+ {[%clk 0:00:07.5]} 53. Kc3 {[%clk 0:00:04.1]} 53... Nf4 {[%clk 0:00:03.5]}
54. Rd2 {[%clk 0:00:04.6]} 54... Rg5 {[%clk 0:00:02.4]} 55. Rg8+ {[%clk
0:00:03.7]} 55... Kf6 {[%clk 0:00:02.7]} 56. Rxg5 {[%clk 0:00:04.1]} 56... Kxg5
{[%clk 0:00:03.6]} 57. b5 {[%clk 0:00:04.2]} 57... h4 {[%clk 0:00:01.9]} 58. b6
{[%clk 0:00:04.5]} 58... Nd5+ {[%clk 0:00:01.9]} 59. Rxd5+ {[%clk 0:00:04.9]}
59... exd5 {[%clk 0:00:02.2]} 60. b7 {[%clk 0:00:05.7]} 1-0

[Event "Early-Titled-Tuesday-Blitz-March-19-2024"]
[Site "Chess.com"]
[Date "2024.03.19"]
[Round "3"]
[White "Mops_2004"]
[Black "platy3"]
[Result "0-1"]
[WhiteElo "2738"]
[BlackElo "2961"]
[TimeControl "180+1"]
[EndTime "8:30:09 PDT"]
[Termination "platy3 won by resignation"]

1. e4 {[%clk 0:03:00.9]} 1... c5 {[%clk 0:02:57.7]} 2. Nf3 {[%clk 0:03:00.9]}
2... e6 {[%clk 0:02:56.9]} 3. c4 {[%clk 0:03:00.7]} 3... Nc6 {[%clk 0:02:55.8]}
4. d4 {[%clk 0:03:00.8]} 4... cxd4 {[%clk 0:02:55.9]} 5. Nxd4 {[%clk 0:03:01.7]}
5... Nf6 {[%clk 0:02:54.9]} 6. Nc3 {[%clk 0:03:01.9]} 6... Bb4 {[%clk
0:02:54.2]} 7. Nxc6 {[%clk 0:03:02.2]} 7... bxc6 {[%clk 0:02:55.1]} 8. Bd3
{[%clk 0:03:02.3]} 8... e5 {[%clk 0:02:55.3]} 9. O-O {[%clk 0:03:02.5]} 9... Bc5
{[%clk 0:02:55.3]} 10. Re1 {[%clk 0:03:02.2]} 10... O-O {[%clk 0:02:53.4]} 11.
Be3 {[%clk 0:03:02.2]} 11... Qe7 {[%clk 0:02:49.7]} 12. Bxc5 {[%clk 0:02:44]}
12... Qxc5 {[%clk 0:02:48.9]} 13. Na4 {[%clk 0:02:44.7]} 13... Qd4 {[%clk
0:02:40.5]} 14. Qc2 {[%clk 0:02:40.9]} 14... Qd6 {[%clk 0:02:00.3]} 15. c5
{[%clk 0:02:40.6]} 15... Qe7 {[%clk 0:02:00.1]} 16. b4 {[%clk 0:02:29.8]} 16...
d6 {[%clk 0:01:56.2]} 17. a3 {[%clk 0:02:14.5]} 17... Be6 {[%clk 0:01:49.1]} 18.
cxd6 {[%clk 0:02:14.1]} 18... Qxd6 {[%clk 0:01:48.8]} 19. Red1 {[%clk
0:02:10.9]} 19... Qc7 {[%clk 0:00:59.2]} 20. Rac1 {[%clk 0:02:09.8]} 20... Rac8
{[%clk 0:00:58.8]} 21. Nc5 {[%clk 0:01:49]} 21... Qe7 {[%clk 0:00:48.6]} 22. Be2
{[%clk 0:01:35.6]} 22... h6 {[%clk 0:00:38]} 23. h3 {[%clk 0:01:35]} 23... Rfd8
{[%clk 0:00:37.8]} 24. Rxd8+ {[%clk 0:01:30.9]} 24... Rxd8 {[%clk 0:00:37.8]}
25. Bf3 {[%clk 0:01:00.7]} 25... Bc8 {[%clk 0:00:36.6]} 26. Nb3 {[%clk
0:01:00.7]} 26... Rd6 {[%clk 0:00:31.6]} 27. Na5 {[%clk 0:00:58.8]} 27... Bd7
{[%clk 0:00:26.7]} 28. Qc5 {[%clk 0:00:58.3]} 28... Be8 {[%clk 0:00:27]} 29. Nc4
{[%clk 0:00:47.9]} 29... Re6 {[%clk 0:00:25.8]} 30. Qxe7 {[%clk 0:00:47.6]}
30... Rxe7 {[%clk 0:00:26.7]} 31. Rd1 {[%clk 0:00:46]} 31... Bd7 {[%clk
0:00:22.2]} 32. Na5 {[%clk 0:00:38.5]} 32... Kf8 {[%clk 0:00:15.6]} 33. Rd6
{[%clk 0:00:37.9]} 33... Ne8 {[%clk 0:00:14.7]} 34. Rd2 {[%clk 0:00:35.3]} 34...
Nc7 {[%clk 0:00:14.9]} 35. Rc2 {[%clk 0:00:34.3]} 35... Nb5 {[%clk 0:00:14.6]}
36. Nxc6 {[%clk 0:00:31.1]} 36... Nxa3 {[%clk 0:00:14.9]} 37. Rc5 {[%clk
0:00:17.2]} 37... Bxc6 {[%clk 0:00:14.8]} 38. Rxc6 {[%clk 0:00:18.1]} 38... Nb5
{[%clk 0:00:11.5]} 39. Be2 {[%clk 0:00:17.9]} 39... Nd4 {[%clk 0:00:11.6]} 40.
Rc8+ {[%clk 0:00:18.2]} 40... Re8 {[%clk 0:00:12.1]} 41. Rxe8+ {[%clk
0:00:18.5]} 41... Kxe8 {[%clk 0:00:13]} 42. Bc4 {[%clk 0:00:18.5]} 42... f6
{[%clk 0:00:11.6]} 43. f3 {[%clk 0:00:14.9]} 43... Ke7 {[%clk 0:00:11.9]} 44.
Kf2 {[%clk 0:00:14.9]} 44... Kd6 {[%clk 0:00:12.7]} 45. Kg3 {[%clk 0:00:14.8]}
45... Nc6 {[%clk 0:00:06.3]} 46. b5 {[%clk 0:00:14.5]} 46... Ne7 {[%clk
0:00:06.6]} 47. Kg4 {[%clk 0:00:14.1]} 47... Kc5 {[%clk 0:00:05.8]} 48. Be2
{[%clk 0:00:13.1]} 48... g6 {[%clk 0:00:06]} 49. h4 {[%clk 0:00:08.7]} 49... h5+
{[%clk 0:00:06]} 50. Kh3 {[%clk 0:00:09.2]} 50... Kd4 {[%clk 0:00:06.9]} 51. Kg3
{[%clk 0:00:04.5]} 51... Nc8 {[%clk 0:00:07.2]} 52. Bd1 {[%clk 0:00:02.7]} 52...
Nd6 {[%clk 0:00:07.6]} 53. Bb3 {[%clk 0:00:03.2]} 53... Kc5 {[%clk 0:00:07.5]}
54. Be6 {[%clk 0:00:02.6]} 54... Kxb5 {[%clk 0:00:07.7]} 55. Kf2 {[%clk
0:00:03]} 55... a5 {[%clk 0:00:07.9]} 56. Ke3 {[%clk 0:00:03.6]} 56... a4 {[%clk
0:00:08.5]} 57. g4 {[%clk 0:00:04.1]} 57... a3 {[%clk 0:00:08.1]} 58. gxh5
{[%clk 0:00:04.2]} 58... gxh5 {[%clk 0:00:09]} 59. Kd2 {[%clk 0:00:04.4]} 59...
Kb4 {[%clk 0:00:07.6]} 60. Kc2 {[%clk 0:00:04.8]} 60... Nc4 {[%clk 0:00:07.1]}
61. Kb1 {[%clk 0:00:04.9]} 61... Nd2+ {[%clk 0:00:07]} 62. Ka2 {[%clk
0:00:05.4]} 62... Nxf3 {[%clk 0:00:07.8]} 63. Bf7 {[%clk 0:00:05.7]} 63... Nxh4
{[%clk 0:00:08.2]} 64. Bxh5 {[%clk 0:00:06.3]} 64... Ng2 {[%clk 0:00:09]} 65.
Bf3 {[%clk 0:00:06.3]} 65... Ne1 {[%clk 0:00:08.7]} 66. Be2 {[%clk 0:00:06.2]}
66... Nc2 {[%clk 0:00:09.2]} 67. Bd3 {[%clk 0:00:06.3]} 67... Kc3 {[%clk
0:00:09]} 68. Ba6 {[%clk 0:00:04.6]} 68... Nb4+ {[%clk 0:00:09]} 0-1

[Event "Early-Titled-Tuesday-Blitz-March-19-2024"]
[Site "Chess.com"]
[Date "2024.03.19"]
[Round "3"]
[White "rhwr"]
[Black "akanga001"]
[Result "1/2-1/2"]
[WhiteElo "2344"]
[BlackElo "2013"]
[TimeControl "180+1"]
[EndTime "8:30:16 PDT"]
[Termination "Game drawn by repetition"]

1. e4 {[%clk 0:02:58.9]} 1... e6 {[%clk 0:02:59.8]} 2. Nf3 {[%clk 0:02:58.7]}
2... d5 {[%clk 0:03:00.3]} 3. e5 {[%clk 0:02:58.9]} 3... c5 {[%clk 0:03:00]} 4.
b4 {[%clk 0:02:59.3]} 4... c4 {[%clk 0:02:39.6]} 5. a3 {[%clk 0:02:56.3]} 5...
a5 {[%clk 0:02:36.9]} 6. b5 {[%clk 0:02:49.8]} 6... Nd7 {[%clk 0:02:35.6]} 7.
Bb2 {[%clk 0:02:47.5]} 7... Nc5 {[%clk 0:02:31.9]} 8. a4 {[%clk 0:02:44.3]} 8...
b6 {[%clk 0:02:29.9]} 9. Be2 {[%clk 0:02:40.8]} 9... Nh6 {[%clk 0:02:28]} 10.
O-O {[%clk 0:02:39.8]} 10... Nf5 {[%clk 0:02:26.7]} 11. d3 {[%clk 0:02:37.4]}
11... cxd3 {[%clk 0:02:25.4]} 12. cxd3 {[%clk 0:02:36.6]} 12... h5 {[%clk
0:02:22.8]} 13. Nbd2 {[%clk 0:02:27.2]} 13... g5 {[%clk 0:02:17.3]} 14. Nb3
{[%clk 0:02:21.5]} 14... Bb7 {[%clk 0:01:55.2]} 15. Nfd4 {[%clk 0:02:13.1]}
15... Nxb3 {[%clk 0:01:51.4]} 16. Qxb3 {[%clk 0:02:07.5]} 16... Nxd4 {[%clk
0:01:31.7]} 17. Bxd4 {[%clk 0:02:07]} 17... Bc5 {[%clk 0:01:11.6]} 18. Qb2
{[%clk 0:02:05.5]} 18... Rc8 {[%clk 0:01:03]} 19. Rac1 {[%clk 0:02:04.6]} 19...
O-O {[%clk 0:00:59.2]} 20. Bxh5 {[%clk 0:02:02.6]} 20... Kg7 {[%clk 0:00:57.6]}
21. h3 {[%clk 0:02:00.1]} 21... Rh8 {[%clk 0:00:51]} 22. Bg4 {[%clk 0:01:59.4]}
22... Qe7 {[%clk 0:00:47.2]} 23. f4 {[%clk 0:01:52.7]} 23... gxf4 {[%clk
0:00:43.9]} 24. Qf2 {[%clk 0:01:35.3]} 24... Qg5 {[%clk 0:00:36]} 25. Bxc5
{[%clk 0:01:19.8]} 25... bxc5 {[%clk 0:00:25.6]} 26. Qxf4 {[%clk 0:01:07.1]}
26... Qxf4 {[%clk 0:00:22.2]} 27. Rxf4 {[%clk 0:01:08]} 27... d4 {[%clk
0:00:13.4]} 28. Rcf1 {[%clk 0:01:01.2]} 28... Rc7 {[%clk 0:00:12.8]} 29. Bf3
{[%clk 0:00:56.9]} 29... Bxf3 {[%clk 0:00:11.7]} 30. R1xf3 {[%clk 0:00:57.8]}
30... Rd8 {[%clk 0:00:10.2]} 31. Rg3+ {[%clk 0:00:56.9]} 31... Kf8 {[%clk
0:00:09.6]} 32. Kf2 {[%clk 0:00:48.5]} 32... c4 {[%clk 0:00:09.9]} 33. dxc4
{[%clk 0:00:48.1]} 33... Rxc4 {[%clk 0:00:10.8]} 34. Ra3 {[%clk 0:00:39]} 34...
Rc2+ {[%clk 0:00:10.7]} 35. Kf1 {[%clk 0:00:36.1]} 35... d3 {[%clk 0:00:11.1]}
36. Ra1 {[%clk 0:00:23.3]} 36... d2 {[%clk 0:00:11]} 37. Rd1 {[%clk 0:00:23.8]}
37... Rd3 {[%clk 0:00:09.5]} 38. Rf2 {[%clk 0:00:20.6]} 38... Ra3 {[%clk
0:00:08.3]} 39. Rfxd2 {[%clk 0:00:19.8]} 39... Rxd2 {[%clk 0:00:08.2]} 40. Rxd2
{[%clk 0:00:20.1]} 40... Rxa4 {[%clk 0:00:08.9]} 41. Rb2 {[%clk 0:00:19.4]}
41... Rc4 {[%clk 0:00:06.7]} 42. b6 {[%clk 0:00:19.1]} 42... Rc8 {[%clk
0:00:07.4]} 43. b7 {[%clk 0:00:19]} 43... Rb8 {[%clk 0:00:08.1]} 44. Ke2 {[%clk
0:00:17.5]} 44... a4 {[%clk 0:00:08.5]} 45. Kd3 {[%clk 0:00:16.8]} 45... a3
{[%clk 0:00:09.4]} 46. Rb1 {[%clk 0:00:15.3]} 46... a2 {[%clk 0:00:09.7]} 47.
Ra1 {[%clk 0:00:15.6]} 47... Rxb7 {[%clk 0:00:10.1]} 48. Rxa2 {[%clk 0:00:16.1]}
48... Rb5 {[%clk 0:00:09.1]} 49. Ke4 {[%clk 0:00:15.8]} 49... Kg7 {[%clk
0:00:09.2]} 50. Re2 {[%clk 0:00:14.9]} 50... Rb4+ {[%clk 0:00:09.4]} 51. Kf3
{[%clk 0:00:15.1]} 51... Kg6 {[%clk 0:00:10.3]} 52. g4 {[%clk 0:00:15]} 52...
Kg5 {[%clk 0:00:10.3]} 53. Re3 {[%clk 0:00:13.9]} 53... Rf4+ {[%clk 0:00:10.1]}
54. Kg3 {[%clk 0:00:13.9]} 54... Ra4 {[%clk 0:00:11]} 55. h4+ {[%clk 0:00:13.9]}
55... Kg6 {[%clk 0:00:10.7]} 56. Rf3 {[%clk 0:00:12.9]} 56... Kg7 {[%clk
0:00:09.9]} 57. h5 {[%clk 0:00:12.2]} 57... Re4 {[%clk 0:00:09.7]} 58. h6+
{[%clk 0:00:09.9]} 58... Kg6 {[%clk 0:00:08.4]} 59. Rf6+ {[%clk 0:00:09]} 59...
Kh7 {[%clk 0:00:07.5]} 60. Rxf7+ {[%clk 0:00:09.3]} 60... Kxh6 {[%clk 0:00:08]}
61. Rf6+ {[%clk 0:00:09.5]} 61... Kg5 {[%clk 0:00:07.7]} 62. Kf3 {[%clk
0:00:09.9]} 62... Rxe5 {[%clk 0:00:07.5]} 63. Rf8 {[%clk 0:00:09.7]} 63... Ra5
{[%clk 0:00:06.4]} 64. Rg8+ {[%clk 0:00:10]} 64... Kf6 {[%clk 0:00:06.3]} 65.
Rh8 {[%clk 0:00:09.7]} 65... Ra3+ {[%clk 0:00:05]} 66. Kf4 {[%clk 0:00:09.7]}
66... Ra4+ {[%clk 0:00:05.3]} 67. Kf3 {[%clk 0:00:10.2]} 67... Ra3+ {[%clk
0:00:05.6]} 68. Ke4 {[%clk 0:00:10.5]} 68... Ra4+ {[%clk 0:00:05.9]} 69. Kf3
{[%clk 0:00:10.8]} 69... Ra3+ {[%clk 0:00:06.3]} 1/2-1/2